fUST/lending_fUST_20250614
["ID","MTS","AMOUNT","RATE_DAILY","PERIOD"]
[365752342,1749877841353,-1500.0,0.00024,14]
[365752343,1749877841364,-1500.0,0.00024,14]
[365752344,1749877841376,-1500.0,0.00024,14]
[365752345,1749877841386,-1500.0,0.00024,14]
[365752346,1749877841396,-1500.0,0.00024,14]
[365752347,1749877841408,-1500.0,0.00024,14]
[365752348,1749877841418,-1500.0,0.00024,14]
[365752349,1749877841428,-1500.0,0.00024,14]
[365752350,1749877841438,-1500.0,0.00024,14]
[365752351,1749877841447,-1500.0,0.00024,14]
[365752352,1749877841457,-1500.0,0.00024,14]
[365752353,1749877841466,-1500.0,0.00024,14]
[365752354,1749877841476,-1500.0,0.00024,14]
[365752355,1749877841486,-1500.0,0.00024,14]
[365752356,1749877841496,-1500.0,0.00024,14]
[365752357,1749877841506,-1500.0,0.00024,14]
[365752358,1749877841515,-1500.0,0.00024,14]
[365752359,1749877841525,-1500.0,0.00024,14]
[365752360,1749877841534,-1500.0,0.00024,14]
[365752361,1749877841544,-1500.0,0.00024,14]
[365752362,1749877841555,-1500.0,0.00024,14]
[365752363,1749877841565,-1500.0,0.00024,14]
[365752364,1749877841574,-1500.0,0.00024,14]
[365752365,1749877841584,-1500.0,0.00024,14]
[365752366,1749877841594,-1500.0,0.00024,14]
[365752367,1749877841603,-1500.0,0.00024,14]
[365752368,1749877841613,-1500.0,0.00024,14]
[365752369,1749877841622,-1500.0,0.00024,14]
[365752370,1749877841632,-1500.0,0.00024,14]
[365752371,1749877841646,-1500.0,0.00024,14]
[365752372,1749877841656,-241.61604,0.00024,14]
[365752373,1749877841665,-151.0,0.00024,7]
[365752374,1749877841675,-151.0,0.00024,7]
[365752375,1749877841685,-334.8730237,0.00024,3]
[365752376,1749877841695,-3912.614743,0.00024,2]
[365752377,1749877841704,-3912.614743,0.00024,2]
[365752378,1749877841713,-3912.614743,0.00024,2]
[365752379,1749877841723,-3912.614743,0.00024,2]
[365752380,1749877841732,-3912.614743,0.00024,2]
[365752381,1749877841741,-3912.614743,0.00024,2]
[365752382,1749877841751,-151.0,0.00024,7]
[365752383,1749877841760,-3912.614743,0.00024,2]
[365752384,1749877841770,-151.0,0.00024,7]
[365752385,1749877841779,-3912.614748,0.00024,2]
[365752386,1749877841789,-151.0,0.00024,7]
[365752387,1749877841799,-151.0,0.00024,7]
[365752388,1749877841808,-151.0,0.00024,7]
[365752389,1749877841818,-151.0,0.00024,7]
[365752390,1749877841828,-151.0,0.00024,7]
[365752391,1749877841837,-151.0,0.00024,7]
[365752392,1749877841846,-151.0,0.00024,7]
[365752393,1749877841856,-192.569042,0.00024,7]
[365752394,1749877841866,-151.0,0.00024,7]
[365752395,1749877841875,-151.0,0.00024,7]
[365752396,1749877841885,-151.0,0.00024,7]
[365752397,1749877841896,-151.0,0.00024,7]
[365752398,1749877841906,-153.379468,0.00024,7]
[365752399,1749877841917,-179.725301,0.00024,7]
[365752400,1749877841927,-179.725301,0.00024,7]
[365752401,1749877841937,-179.725301,0.00024,7]
[365752402,1749877841948,-179.725301,0.00024,7]
[365752403,1749877841958,-179.725301,0.00024,7]
[365752404,1749877841967,-179.725301,0.00024,7]
[365752405,1749877841977,-179.725301,0.00024,7]
[365752406,1749877841987,-179.725293,0.00024,7]
[365752407,1749877841996,-151.0,0.00024,7]
[365752408,1749877842005,-151.0,0.00024,7]
[365752409,1749877842016,-151.0,0.00024,7]
[365752410,1749877842026,-151.0,0.00024,7]
[365752411,1749877842036,-151.0,0.00024,7]
[365752412,1749877842046,-1746.0,0.00024,3]
[365752413,1749877842056,-151.0,0.00024,3]
[365752414,1749877842066,-1746.0,0.00024,3]
[365752415,1749877842075,-151.0,0.00024,3]
[365752416,1749877842086,-172.0,0.00024,3]
[365752417,1749877842096,-151.0,0.00024,3]
[365752418,1749877842106,-151.0,0.00024,3]
[365752419,1749877842117,-1746.0,0.00024,3]
[365752420,1749877842127,-151.0,0.00024,3]
[365752421,1749877842138,-1746.0,0.00024,3]
[365752422,1749877842149,-151.0,0.00024,3]
[365752423,1749877842160,-1746.0,0.00024,3]
[365752424,1749877842170,-151.0,0.00024,3]
[365752425,1749877842179,-1740.0,0.00024,3]
[365752426,1749877842189,-151.0,0.00024,3]
[365752427,1749877842199,-171.23963482,0.00024,3]
[365752428,1749877842209,-317.0,0.00024,3]
[365752429,1749877842219,-317.0,0.00024,3]
[365752430,1749877842228,-317.0,0.00024,3]
[365752431,1749877842238,-317.0,0.00024,3]
[365752432,1749877842247,-317.0,0.00024,3]
[365752433,1749877842257,-317.0,0.00024,3]
[365752434,1749877842267,-317.0,0.00024,3]
[365752435,1749877842277,-317.0,0.00024,3]
[365752436,1749877842286,-317.0,0.00024,3]
[365752437,1749877842296,-317.0,0.00024,3]
[365752438,1749877842306,-317.0,0.00024,3]
[365752439,1749877842315,-317.0,0.00024,3]
[365752440,1749877842325,-151.0,0.00024,7]
[365752441,1749877842335,-151.0,0.00024,7]
[365752442,1749877842344,-151.0,0.00024,7]
[365752443,1749877842354,-158.402073,0.00024,7]
[365752444,1749877842363,-151.0,0.00024,7]
[365752445,1749877842372,-158.335739,0.00024,7]
[365752446,1749877842382,-151.0,0.00024,7]
[365752447,1749877842393,-151.0,0.00024,7]
[365752448,1749877842402,-151.0,0.00024,7]
[365752449,1749877842412,-151.0,0.00024,7]
[365752450,1749877842422,-151.0,0.00024,7]
[365752451,1749877842431,-151.0,0.00024,7]
[365752452,1749877842440,-151.0,0.00024,7]
[365752453,1749877842451,-151.0,0.00024,7]
[365752454,1749877842461,-151.0,0.00024,7]
[365752455,1749877842472,-151.0,0.00024,7]
[365752456,1749877842482,-151.0,0.00024,7]
[365752457,1749877842492,-151.0,0.00024,7]
[365752458,1749877842501,-385.21824,0.00024,7]
[365752459,1749877842511,-385.21824,0.00024,7]
[365752460,1749877842521,-385.21824,0.00024,7]
[365752461,1749877842531,-385.21824,0.00024,7]
[365752462,1749877842540,-385.21824,0.00024,7]
[365752463,1749877842550,-385.21824,0.00024,7]
[365752464,1749877842563,-385.21824,0.00024,7]
[365752465,1749877842573,-385.21824,0.00024,7]
[365752466,1749877842583,-151.0,0.00024,7]
[365752467,1749877842592,-151.0,0.00024,7]
[365752468,1749877842602,-151.0,0.00024,7]
[365752469,1749877842612,-151.0,0.00024,7]
[365752470,1749877842622,-269.593969,0.00024,7]
[365752471,1749877842632,-158.37,0.00024,2]
[365752472,1749877842645,-1746.0,0.00024,3]
[365752473,1749877842655,-1746.0,0.00024,3]
[365752474,1749877842664,-1746.0,0.00024,3]
[365752475,1749877842757,-151.0,0.00024,3]
[365752476,1749877842778,-151.0,0.00024,3]
[365752477,1749877842787,-1746.0,0.00024,3]
[365752478,1749877842798,-151.0,0.00024,3]
[365752479,1749877842809,-166.0,0.00024,3]
[365752480,1749877842818,-151.0,0.00024,3]
[365752481,1749877842829,-171.0,0.00024,3]
[365752482,1749877842838,-1746.0,0.00024,3]
[365752483,1749877842849,-151.0,0.00024,3]
[365752484,1749877842859,-243.6925415,0.00024,3]
[365752485,1749877842870,-812.96256108,0.00024,3]
[365752486,1749877842880,-151.0,0.00024,3]
[365752487,1749877842891,-151.0,0.00024,3]
[365752488,1749877842901,-317.0,0.00024,3]
[365752489,1749877842913,-317.0,0.00024,3]
[365752490,1749877842923,-317.0,0.00024,3]
[365752491,1749877842934,-317.0,0.00024,3]
[365752492,1749877842943,-317.0,0.00024,3]
[365752493,1749877842953,-317.0,0.00024,3]
[365752494,1749877842963,-317.0,0.00024,3]
[365752495,1749877842972,-317.0,0.00024,3]
[365752496,1749877842982,-317.0,0.00024,3]
[365752497,1749877842992,-317.0,0.00024,3]
[365752498,1749877843002,-288.57454196,0.00024,3]
[365752499,1749877843011,-835.41710878,0.00024,3]
[365752500,1749877843022,-835.41710878,0.00024,7]
[365752501,1749877843031,-835.41710878,0.00024,7]
[365752502,1749877843041,-424.40141186,0.00024,3]
[365752503,1749877843051,-424.40141186,0.00024,7]
[365752504,1749877843060,-229.82479369,0.00024,3]
[365752505,1749877843070,-229.82479369,0.00024,7]
[365752506,1749877843080,-445.095541,0.00024,7]
[365752507,1749877843090,-445.095541,0.00024,7]
[365752508,1749877843100,-445.095541,0.00024,7]
[365752509,1749877843110,-445.095541,0.00024,7]
[365752510,1749877843121,-445.095541,0.00024,7]
[365752511,1749877843131,-445.095541,0.00024,7]
[365752512,1749877843140,-445.095541,0.00024,7]
[365752513,1749877843151,-445.095541,0.00024,7]
[365752514,1749877843162,-151.0,0.00024,7]
[365752515,1749877843172,-151.0,0.00024,7]
[365752516,1749877843182,-151.0,0.00024,7]
[365752517,1749877843192,-151.0,0.00024,7]
[365752519,1749877843202,-151.0,0.00024,7]
[365752521,1749877843211,-151.0,0.00024,7]
[365752523,1749877843222,-160.0,0.00024,3]
[365752525,1749877843233,-160.0,0.00024,7]
[365752527,1749877843243,-151.0,0.00024,7]
[365752529,1749877843253,-151.0,0.00024,7]
[365752531,1749877843262,-151.0,0.00024,7]
[365752533,1749877843271,-151.0,0.00024,7]
[365752535,1749877843281,-151.0,0.00024,7]
[365752537,1749877843290,-151.0,0.00024,7]
[365752539,1749877843300,-151.0,0.00024,7]
[365752541,1749877843310,-151.0,0.00024,7]
[365752543,1749877843319,-315.814954,0.00024,7]
[365752545,1749877843329,-315.814954,0.00024,7]
[365752547,1749877843338,-315.814954,0.00024,7]
[365752549,1749877843348,-315.814954,0.00024,7]
[365752551,1749877843357,-1746.0,0.00024,3]
[365752553,1749877843367,-1746.0,0.00024,3]
[365752555,1749877843377,-1746.0,0.00024,3]
[365752557,1749877843386,-151.0,0.00024,3]
[365752559,1749877843395,-1746.0,0.00024,3]
[365752561,1749877843405,-151.0,0.00024,3]
[365752563,1749877843415,-1746.0,0.00024,3]
[365752565,1749877843424,-1746.0,0.00024,3]
[365752567,1749877843433,-166.0,0.00024,3]
[365752568,1749877843443,-151.0,0.00024,3]
[365752570,1749877843452,-1746.0,0.00024,3]
[365752573,1749877843462,-151.0,0.00024,3]
[365752575,1749877843471,-1746.0,0.00024,3]
[365752576,1749877843480,-151.0,0.00024,3]
[365752578,1749877843490,-1746.0,0.00024,3]
[365752581,1749877843499,-151.0,0.00024,3]
[365752583,1749877843509,-151.0,0.00024,3]
[365752584,1749877843518,-1746.0,0.00024,3]
[365752585,1749877843528,-151.0,0.00024,3]
[365752586,1749877843537,-1746.0,0.00024,3]
[365752588,1749877843546,-1746.0,0.00024,3]
[365752589,1749877843556,-1746.0,0.00024,3]
[365752590,1749877843565,-151.0,0.00024,3]
[365752591,1749877843574,-151.0,0.00024,3]
[365752592,1749877843584,-1746.0,0.00024,3]
[365752593,1749877843593,-151.0,0.00024,3]
[365752594,1749877843602,-1746.0,0.00024,3]
[365752595,1749877843612,-1746.0,0.00024,3]
[365752596,1749877843621,-1729.0,0.00024,3]
[365752597,1749877843631,-317.0,0.00024,3]
[365752598,1749877843645,-317.0,0.00024,3]
[365752599,1749877843655,-317.0,0.00024,3]
[365752600,1749877843665,-317.0,0.00024,3]
[365752601,1749877843675,-317.0,0.00024,3]
[365752602,1749877843685,-317.0,0.00024,3]
[365752603,1749877843695,-317.0,0.00024,3]
[365752604,1749877843704,-317.0,0.00024,3]
[365752605,1749877843713,-317.0,0.00024,3]
[365752606,1749877843723,-317.0,0.00024,3]
[365752607,1749877843732,-317.0,0.00024,3]
[365752608,1749877843742,-317.0,0.00024,3]
[365752609,1749877843752,-317.0,0.00024,3]
[365752610,1749877843761,-317.0,0.00024,3]
[365752611,1749877843771,-317.0,0.00024,3]
[365752612,1749877843784,-317.0,0.00024,3]
[365752613,1749877843793,-317.0,0.00024,3]
[365752614,1749877843804,-719.7,0.00024003,2]
[365752615,1749877843814,-1063.24869493,0.00024056,2]
[365752616,1749877843823,-177.761198,0.00024059,7]
[365752617,1749877843833,-177.761198,0.00024059,7]
[365752618,1749877843842,-485.5,0.0002407,4]
[365752619,1749877843851,-315.814954,0.0002407,7]
[365752620,1749877843861,-315.814954,0.0002407,7]
[365752621,1749877843871,-460.0,0.0002407,4]
[365752622,1749877843880,-1155.84896121,0.00024072,10]
[365752623,1749877843890,-160.0,0.00024082,2]
[365752624,1749877843899,-719.7,0.00024103,3]
[365752625,1749877843908,-151.0,0.00024109,7]
[365752626,1749877843918,-151.0,0.00024109,7]
[365752627,1749877843927,-460.0,0.00024109,4]
[365752628,1749877843937,-1885.72,0.00024109,4]
[365752629,1749877843947,-460.0,0.00024109,4]
[365752630,1749877843956,-460.0,0.00024109,4]
[365752631,1749877843966,-232.574317,0.0002411,7]
[365752632,1749877843976,-154.245673,0.0002411,7]
[365752633,1749877843985,-272.022604,0.0002411,7]
[365752634,1749877843994,-272.022604,0.0002411,7]
[365752635,1749877844003,-153.658189,0.0002411,7]
[365752636,1749877844013,-205.0,0.00024127,2]
[365752637,1749877844023,-364.640798,0.0002413,7]
[365752638,1749877844033,-364.640794,0.0002413,7]
[365752639,1749877844042,-2891.9,0.00024146,12]
[365752640,1749877844051,-1155.84896121,0.00024176,10]
[365752641,1749877844060,-168.0,0.00024192,2]
[365752642,1749877844070,-719.7,0.00024203,5]
[365752643,1749877844079,-201.0,0.0002421,10]
[365752644,1749877844089,-1155.84896121,0.00024279,10]
[365752645,1749877844098,-151.0,0.00024299,7]
[365752646,1749877844108,-151.0,0.00024299,7]
[365752647,1749877844119,-2200.0,0.00024299,2]
[365752648,1749877844128,-250.0,0.000243,2]
[365752649,1749877844137,-250.0,0.000243,2]
[365752650,1749877844147,-250.0,0.000243,2]
[365752651,1749877844156,-250.0,0.000243,2]
[365752652,1749877844166,-250.0,0.000243,2]
[365752653,1749877844175,-250.0,0.000243,2]
[365752654,1749877844184,-250.0,0.000243,2]
[365752655,1749877844194,-250.0,0.000243,2]
[365752656,1749877844203,-250.0,0.000243,2]
[365752657,1749877844213,-250.0,0.000243,2]
[365752658,1749877844222,-250.0,0.000243,2]
[365752659,1749877844232,-300.6,0.000243,2]
[365752660,1749877844241,-213.28201367,0.000243,10]
[365752661,1749877844251,-206.0,0.000243,2]
[365752662,1749877844260,-160.0,0.000243,10]
[365752663,1749877844270,-100675.79,0.000243,2]
[365752664,1749877844279,-151.0,0.000243,7]
[365752665,1749877844289,-151.0,0.000243,7]
[365752666,1749877844298,-151.0,0.000243,7]
[365752667,1749877844307,-151.0,0.000243,7]
[365752668,1749877844317,-151.0,0.000243,7]
[365752669,1749877844326,-151.0,0.000243,7]
[365752670,1749877844336,-151.0,0.000243,7]
[365752671,1749877844345,-151.0,0.000243,7]
[365752672,1749877844354,-385.21824,0.000243,7]
[365752673,1749877844364,-385.21824,0.000243,7]
[365752674,1749877844374,-835.41710878,0.000243,10]
[365752675,1749877844383,-315.3423008,0.000243,10]
[365752676,1749877844394,-424.40141186,0.000243,10]
[365752677,1749877844403,-229.82479369,0.000243,10]
[365752678,1749877844413,-445.095541,0.000243,7]
[365752679,1749877844423,-445.095541,0.000243,7]
[365752680,1749877844433,-158.586032,0.000243,7]
[365752681,1749877844442,-151.0,0.000243,7]
[365752682,1749877844452,-160.0,0.000243,10]
[365752683,1749877844463,-151.0,0.000243,7]
[365752684,1749877844473,-151.0,0.000243,7]
[365752685,1749877844483,-315.814954,0.000243,7]
[365752686,1749877844492,-315.814954,0.000243,7]
[365752687,1749877844501,-12533.30537164,0.000243,10]
[365752688,1749877844511,-719.7,0.00024303,6]
[365752689,1749877844520,-4545.96526006,0.00024314,2]
[365752690,1749877844530,-90234.74963341,0.00024321,3]
[365752691,1749877844540,-177.761198,0.00024321,7]
[365752692,1749877844549,-177.761198,0.00024321,7]
[365752693,1749877844558,-163.038704,0.00024321,7]
[365752694,1749877844568,-151.0,0.00024321,7]
[365752695,1749877844579,-232.574317,0.00024321,7]
[365752696,1749877844589,-272.022604,0.00024321,7]
[365752697,1749877844599,-272.022604,0.00024321,7]
[365752698,1749877844608,-151.0,0.00024321,7]
[365752699,1749877844617,-151.0,0.00024321,7]
[365752700,1749877844627,-151.0,0.00024321,7]
[365752701,1749877844639,-151.0,0.00024321,7]
[365752702,1749877844651,-151.0,0.00024321,7]
[365752703,1749877844660,-485.5,0.00024344,4]
[365752704,1749877844670,-460.0,0.00024344,4]
[365752705,1749877844679,-155.239085,0.00024373,7]
[365752706,1749877844688,-151.0,0.00024373,7]
[365752707,1749877844699,-151.0,0.00024373,7]
[365752708,1749877844709,-445.095541,0.00024373,7]
[365752709,1749877844720,-445.095541,0.00024373,7]
[365752710,1749877844729,-1155.84896121,0.00024383,11]
[365752711,1749877844739,-460.0,0.00024383,4]
[365752712,1749877844749,-1885.72,0.00024383,4]
[365752713,1749877844758,-460.0,0.00024383,4]
[365752714,1749877844767,-460.0,0.00024383,4]
[365752715,1749877844776,-5087.63,0.000244,7]
[365752716,1749877844785,-385.21824,0.000244,7]
[365752717,1749877844794,-385.21824,0.000244,7]
[365752718,1749877844804,-151.0,0.000244,7]
[365752719,1749877844813,-315.814954,0.000244,7]
[365752720,1749877844823,-315.814954,0.000244,7]
[365752721,1749877844833,-719.7,0.00024403,4]
[365752722,1749877844842,-151.0,0.00024446,7]
[365752723,1749877844851,-151.0,0.00024446,7]
[365752724,1749877844860,-151.0,0.00024446,7]
[365752725,1749877844869,-151.0,0.00024446,7]
[365752726,1749877844878,-151.0,0.00024446,7]
[365752727,1749877844889,-151.0,0.00024446,7]
[365752728,1749877844899,-269.307858,0.00024446,7]
[365752729,1749877844909,-151.0,0.00024446,7]
[365752730,1749877844918,-385.21824,0.00024446,7]
[365752731,1749877844928,-385.21824,0.00024446,7]
[365752732,1749877844937,-151.0,0.00024446,7]
[365752733,1749877844947,-445.095541,0.00024446,7]
[365752734,1749877844956,-445.095541,0.00024446,7]
[365752735,1749877844966,-151.0,0.00024446,7]
[365752736,1749877844976,-151.0,0.00024446,7]
[365752737,1749877844985,-213.332185,0.00024446,7]
[365752738,1749877844995,-315.814954,0.00024446,7]
[365752739,1749877845004,-315.814954,0.00024446,7]
[365752740,1749877845014,-73703.25355072,0.00024446,7]
[365752741,1749877845191,-723.50100219,0.00024446,7]
[365752742,1749877845202,-1013.25606379,0.00024446,7]
[365752743,1749877845226,-524.57,0.00022404,2]
[365752746,1749877846601,-0.24132712,0.0002219,2]
[365752747,1749877847309,-359.75867288,0.0002219,2]
[365752748,1749877847319,-45.35162369,0.00022404,2]
[365752749,1749877847330,-909.64364974,0.00022404,2]
[365752752,1749878078562,180.50637306,0.00019514,2]
[365752754,1749878242415,-6677.0,0.00020451,2]
[365752757,1749878455210,1000.0,0.00024,120]
[365752758,1749878484561,1000.0,0.000244,120]
[365752759,1749878501340,2508.0,0.000246,120]
[365752761,1749878572174,163.646811,0.00013699,2]
[365752762,1749878590357,2162.32940937,0.0002,2]
[365752763,1749878590383,2837.67059063,0.0002,2]
[365752764,1749878655237,1078.110576,0.00019727,2]
[365752765,1749878736146,-186.39678632,0.00020246,2]
[365752766,1749878770145,18027.5435532,0.00019725,2]
[365752768,1749878793624,1256.71968017,0.0002,2]
[365752769,1749878793648,3743.28031983,0.0002,2]
[365752770,1749878836089,-1564.19692089,0.00020245,2]
[365752771,1749878848110,-533.66011627,0.00020245,2]
[365752772,1749878850119,-2902.14296284,0.00020245,2]
[365752773,1749878850139,-190.84605584,0.00020349,2]
[365752774,1749878850162,-190.84605584,0.00020369,2]
[365752775,1749878850183,-1200.0,0.00020449,2]
[365752776,1749878850204,-300.0,0.0002045,2]
[365752777,1749878850226,-300.0,0.0002045,2]
[365752778,1749878850247,-13447.26257044,0.00020451,2]
[365752779,1749878889770,177.884152,0.00019945,2]
[365752780,1749878896081,412.57096322,0.00010618,2]
[365752781,1749878909907,276.12188435,0.00014114,2]
[365752782,1749878922787,1000.0,0.0001,2]
[365752783,1749878924509,603.99999951,0.0002,120]
[365752784,1749878926288,1804.19315416,0.00015,2]
[365752785,1749878927303,647.46317913,0.0002,2]
[365752786,1749878927341,209.46483432,0.00016,2]
[365752787,1749878928830,2135.52412695,0.0001,2]
[365752788,1749878951037,171.8120435,0.00019945,2]
[365752789,1749878952177,-2047.3278,0.00020246,2]
[365752790,1749878952205,-2952.6722,0.00020246,2]
[365752791,1749878954618,3948.58426703,0.0002,2]
[365752792,1749878954642,1051.41573297,0.0002,2]
[365752793,1749878956097,-2117.23663629,0.00020451,2]
[365752794,1749878964115,-2658.50079327,0.00020451,2]
[365752795,1749878964138,-182.405092,0.00020469,2]
[365752796,1749878964162,-300.0,0.00020745,2]
[365752797,1749878964183,-1686.09081219,0.00020747,2]
[365752798,1749878971135,-2071.95920722,0.00020539,2]
[365752804,1749878996492,2003.89360411,0.00020087,2]
[365752805,1749878996512,2070.1929645,0.00020087,2]
[365752806,1749878997082,-226.35468164,0.00020087,2]
[365752807,1749879012459,-154.16074048,0.00020086,2]
[365752825,1749879032500,-1045.83925952,0.00020086,2]
[365752826,1749879032510,-4166.15052535,0.00020087,2]
[365752827,1749879032613,-33904.1220762,0.00020087,2]
[365752828,1749879032623,-2928.04079278,0.00020539,2]
[365752829,1749879032632,-1687.55724451,0.00020747,2]
[365752830,1749879032642,-350.3068054,0.00020995,2]
[365752831,1749879032651,-204.197,0.00021078,2]
[365752832,1749879032660,-2003.74372525,0.00021078,2]
[365752833,1749879032669,-179.85413508,0.00021078,2]
[365752834,1749879032679,-460.0,0.00021095,4]
[365752835,1749879032687,-460.0,0.00021095,4]
[365752836,1749879032696,-460.0,0.00021095,2]
[365752837,1749879032706,-460.0,0.00021095,4]
[365752838,1749879032715,-186.72880321,0.00021095,4]
[365752839,1749879032724,-460.0,0.00021095,4]
[365752840,1749879032734,-460.0,0.00021095,4]
[365752841,1749879032743,-460.0,0.00021095,4]
[365752842,1749879032752,-460.0,0.00021095,4]
[365752843,1749879032761,-431.53964893,0.00021095,4]
[365752844,1749879032771,-418.97559352,0.00021095,4]
[365752845,1749879032780,-1314.36,0.00021095,4]
[365752846,1749879032789,-298.08242261,0.00021095,4]
[365752847,1749879032799,-460.0,0.00021095,4]
[365752848,1749879032808,-460.0,0.00021095,4]
[365752849,1749879032818,-466.81009867,0.00021095,4]
[365752850,1749879032828,-460.0,0.00021095,4]
[365752851,1749879032837,-460.0,0.00021095,4]
[365752852,1749879032847,-460.0,0.00021095,4]
[365752853,1749879032858,-460.0,0.00021095,4]
[365752854,1749879032867,-460.0,0.00021095,4]
[365752855,1749879032876,-460.0,0.00021095,4]
[365752856,1749879032886,-460.0,0.00021095,4]
[365752857,1749879032895,-460.0,0.00021095,4]
[365752858,1749879032905,-460.0,0.00021095,4]
[365752859,1749879032915,-460.0,0.00021369,4]
[365752860,1749879032924,-460.0,0.00021369,2]
[365752861,1749879032933,-460.0,0.00021369,4]
[365752862,1749879032943,-1314.36,0.00021369,4]
[365752863,1749879032952,-460.0,0.00021369,4]
[365752864,1749879032961,-460.0,0.00021369,4]
[365752865,1749879032971,-460.0,0.00021369,4]
[365752866,1749879032980,-460.0,0.00021369,4]
[365752867,1749879032990,-460.0,0.00021369,4]
[365752868,1749879032999,-1994.06,0.00021492,2]
[365752869,1749879033008,-350.30680539,0.00021547,2]
[365752870,1749879033018,-432.08194637,0.00021642,2]
[365752871,1749879033028,-451.92191583,0.00021642,2]
[365752872,1749879033037,-460.0,0.00021643,4]
[365752873,1749879033047,-552.17,0.00021643,4]
[365752874,1749879033056,-1314.36,0.00021643,4]
[365752875,1749879033066,-460.0,0.00021643,4]
[365752876,1749879033076,-460.0,0.00021643,4]
[365752877,1749879033085,-460.0,0.00021643,4]
[365752878,1749879033095,-460.0,0.00021643,4]
[365752879,1749879033107,-460.0,0.00021643,4]
[365752880,1749879033116,-501.22936447,0.0002185,2]
[365752881,1749879033126,-585.89466778,0.0002185,2]
[365752882,1749879033136,-1208.25009672,0.000219,2]
[365752883,1749879033146,-598.35143919,0.000219,6]
[365752884,1749879033155,-460.0,0.00021917,4]
[365752885,1749879033164,-1314.36,0.00021917,4]
[365752886,1749879033174,-460.0,0.00021917,4]
[365752887,1749879033183,-460.0,0.00021917,4]
[365752888,1749879033315,-460.0,0.00021917,4]
[365752889,1749879033325,-460.0,0.00021917,4]
[365752890,1749879033334,-460.0,0.00021917,4]
[365752891,1749879033344,-164.40854753,0.00021917,4]
[365752892,1749879033354,-159.3731351,0.00021917,4]
[365752893,1749879033363,-154.23443605,0.00021917,4]
[365752894,1749879033373,-153.8752723,0.00021917,4]
[365752895,1749879033383,-203.06175282,0.00021917,4]
[365752896,1749879033392,-151.82230529,0.00021917,2]
[365752897,1749879033402,-209.88470844,0.00021917,4]
[365752898,1749879033411,-500.0,0.00021967,2]
[365752899,1749879033420,-1680.0,0.00021974,2]
[365752900,1749879033430,-598.35143905,0.00022003,6]
[365752901,1749879033439,-207.4,0.00022009,2]
[365752902,1749879033449,-506.96229589,0.0002205,2]
[365752903,1749879033459,-602.11176021,0.0002205,2]
[365752904,1749879033468,-500.0,0.0002205,2]
[365752905,1749879033478,-350.30680539,0.00022098,2]
[365752906,1749879033487,-598.35143905,0.00022107,6]